bitfinex-derivatives/quotes_ETHF0:USTF0_20241231
["timestamp","ask_amount","ask_price","bid_price","bid_amount"]
[1735674981294,0.29852,3354.8,3354.7,5.86209261]
[1735674983397,0.29852,3354.8,3354.7,5.56357261]
[1735674983999,0.29852,3354.8,3354.7,5.86209261]
[1735674984197,1.81334406,3354.9,3354.7,5.56357261]
[1735674984396,0.29851,3354.9,3354.8,0.29851]
[1735674984694,2.32748672,3355.1,3355.0,0.2985]
[1735674984695,2.62597672,3355.1,3355.0,0.2985]
[1735674984900,2.32748672,3355.1,3355.0,0.2985]
[1735674985100,2.62597672,3355.1,3355.0,0.2985]
[1735674985296,2.62597672,3355.1,3355.0,0.7462]
[1735674985497,0.29849,3355.1,3355.0,13.39709065]
[1735674986388,2.32748672,3355.5,3355.4,0.29846]
[1735674986592,2.32748672,3355.5,3355.4,3.50626]
[1735674987292,2.62593672,3355.6,3355.5,0.29845]
[1735674987496,2.62593672,3355.6,3355.5,0.72775]
[1735674988394,0.29845,3355.6,3355.5,0.72775]
[1735674989201,4.14083078,3355.8,3355.4,7.89975863]
[1735674989405,2.11179406,3355.5,3355.4,4.69195863]
[1735674989891,1.81334406,3355.5,3355.3,7.03793794]
[1735674990094,1.19976,3355.4,3355.3,7.03793794]
[1735674990499,0.75566,3355.4,3355.3,7.03793794]
[1735674991499,0.29847,3355.3,3355.2,5.14035308]
[1735674992205,0.29847,3355.3,3355.2,4.69195308]
[1735674993600,2.32748672,3355.3,3355.0,0.8941]
[1735674993802,0.29849,3355.1,3355.0,0.8941]
[1735674995709,2.11183406,3355.1,3355.0,0.8941]
[1735674996002,0.29849,3355.1,3355.0,1.1926]
[1735674997405,0.29849,3355.1,3355.0,5.88455308]
[1735674997803,0.29849,3355.1,3355.0,5.58605308]
[1735674998406,0.29849,3355.1,3355.0,5.88455308]
[1735674999312,2.32748672,3355.3,3355.0,5.58605308]
[1735674999514,2.32748672,3355.4,3355.1,0.4593]
[1735674999713,2.32748672,3355.4,3355.3,3.50627]
[1735675000813,0.29846,3355.5,3355.4,0.29846]
[1735675001308,2.32748672,3355.7,3355.3,8.79747913]
[1735675001509,3.49123008,3355.9,3355.8,0.29842]
[1735675001914,3.49123008,3355.9,3355.8,3.50622]
[1735675002122,5.79202799,3356.2,3355.8,5.15222]
[1735675002123,2.79023008,3356.2,3355.8,5.15222]
[1735675002430,2.79023008,3356.2,3356.1,0.2984]
[1735675003515,1.81334406,3356.8,3356.1,0.2984]
[1735675003516,0.29835,3356.7,3356.1,16.9077816]
[1735675003822,0.29835,3356.7,3356.6,3.50615]
[1735675004516,2.24224406,3357.1,3356.6,3.2078]
[1735675004716,0.29834,3356.8,3356.7,0.29834]
[1735675005019,2.24224406,3357.1,3356.6,7.89109857]
[1735675005221,0.29834,3356.7,3356.6,8.18944857]
[1735675005420,0.29834,3356.7,3356.6,7.89109857]
[1735675005918,0.29834,3356.7,3356.6,4.68329857]
[1735675006215,0.29835,3356.6,3356.5,4.68329857]
[1735675006415,2.11169406,3356.6,3356.5,4.68329857]
[1735675007323,0.29836,3356.5,3356.4,0.29837]
[1735675007918,0.29838,3356.4,3356.3,0.29837]
[1735675008416,1.81334406,3356.6,3356.2,8.34089857]
[1735675008624,0.29837,3356.5,3356.4,0.29836]
[1735675011225,1.81334406,3356.6,3356.2,3.2078]
[1735675011426,0.29838,3356.3,3356.2,3.50618]
[1735675012926,0.29836,3356.6,3356.2,3.2078]
[1735675013128,0.29836,3356.6,3356.5,0.29836]
[1735675013631,0.29835,3356.7,3356.6,0.29834]
[1735675015527,0.29835,3356.7,3356.6,3.50614]
[1735675016029,0.4217,3356.8,3356.6,3.2078]
[1735675016231,0.72004,3356.8,3356.7,0.29834]
[1735675018034,0.4217,3356.8,3356.6,3.2078]
[1735675018228,0.29834,3356.7,3356.6,3.2078]
[1735675019532,0.29841,3356.0,3355.9,4.68329857]
[1735675020533,3.2078,3356.0,3355.7,0.4354]
[1735675020738,2.11176406,3355.8,3355.7,0.4354]
[1735675021253,0.29843,3355.7,3355.6,0.4296]
[1735675023831,0.29845,3355.5,3355.4,0.29845]
[1735675024033,0.29845,3355.6,3355.5,0.29845]
[1735675025039,1.81334406,3355.8,3355.3,1.3223]
[1735675025241,0.29845,3355.5,3355.4,0.29845]
[1735675026232,1.81334406,3355.8,3355.3,1.3223]
[1735675026437,0.29845,3355.6,3355.5,0.29845]
[1735675026941,0.29846,3355.5,3355.4,0.29846]
[1735675028342,1.81334406,3355.8,3355.3,1.3223]
[1735675028539,0.29849,3355.1,3355.0,0.29849]
[1735675029244,0.4448,3355.4,3354.9,5.54699857]
[1735675029446,3.2078,3355.6,3355.1,3.2078]
[1735675029635,3.2078,3355.6,3355.5,0.29845]
[1735675029838,3.50624,3355.6,3355.5,0.29845]
[1735675031450,0.29844,3355.6,3355.5,0.29845]
[1735675032856,0.29844,3355.6,3355.5,0.75535]
[1735675033057,3.2078,3356.0,3355.5,3.6647]
[1735675033260,3.50621,3356.0,3355.9,0.29842]
[1735675034155,2.99640406,3356.4,3355.5,3.6647]
[1735675034156,0.29842,3355.9,3355.8,0.29842]
[1735675034754,1.81334406,3356.1,3355.5,3.6647]
[1735675034955,0.29841,3356.0,3355.9,0.29841]
[1735675035653,2.25044406,3356.4,3355.6,0.7461]
[1735675035955,3.2078,3356.5,3356.0,3.2078]
[1735675036157,0.29838,3356.4,3356.3,0.29837]
[1735675036550,0.29839,3356.3,3356.2,0.29838]
[1735675036752,0.29838,3356.4,3356.3,0.29837]
[1735675038458,0.29838,3356.3,3356.2,0.29838]
[1735675041082,1.81334406,3356.4,3356.1,0.9224]
[1735675041284,0.74529,3356.2,3356.1,0.7654]
[1735675041972,0.29839,3356.2,3356.1,0.7654]
[1735675042776,0.29839,3356.2,3356.1,0.467]
[1735675043270,0.29839,3356.2,3356.1,0.7654]
[1735675043865,0.29839,3356.2,3356.1,0.467]
[1735675044664,0.29839,3356.2,3356.1,0.7654]
[1735675045758,3.6547,3356.5,3356.1,0.467]
[1735675045959,0.29838,3356.4,3356.3,0.29837]
[1735675046267,3.2078,3356.5,3356.4,0.29837]
[1735675046268,3.50617,3356.5,3356.4,0.29837]
[1735675047461,0.29838,3356.4,3356.3,0.29837]
[1735675048172,0.29839,3356.3,3356.2,0.29838]
[1735675048371,0.74319,3356.3,3356.2,0.29838]
[1735675048569,0.29839,3356.3,3356.2,0.29838]
[1735675050672,0.29839,3356.3,3356.2,0.75338]
[1735675054779,0.29839,3356.3,3356.2,5.43667857]
[1735675055576,2.55922406,3356.7,3356.2,5.13829857]
[1735675055775,0.29837,3356.5,3356.4,0.29836]
[1735675057577,1.81334406,3356.7,3356.6,0.29834]
[1735675057578,0.29835,3356.7,3356.6,0.29834]
[1735675057881,3.50613,3356.9,3356.8,0.29834]
[1735675058378,0.29833,3356.9,3356.8,0.29834]
[1735675060981,2.54847406,3357.0,3356.9,0.29833]
[1735675061177,0.73513,3357.0,3356.9,0.29833]
[1735675063680,0.29833,3357.0,3356.9,0.29833]
[1735675065287,0.29834,3356.9,3356.8,0.29833]
[1735675065586,4.49062589,3357.2,3356.7,0.9228]
[1735675065785,0.29833,3356.9,3356.8,0.29833]
[1735675067384,3.48784491,3357.2,3356.7,0.9228]
[1735675067585,3.48784491,3357.2,3356.9,0.29832]
[1735675068180,0.29833,3356.9,3356.8,0.29833]
[1735675072394,0.29832,3357.0,3356.9,0.29832]
[1735675072690,0.29833,3356.9,3356.8,0.29833]
[1735675074991,0.29833,3356.9,3356.8,0.29832]
[1735675076289,0.29833,3356.9,3356.8,4.98161857]
[1735675078995,0.29833,3356.9,3356.8,5.91606458]
[1735675080396,0.29833,3356.9,3356.8,12.94101244]
[1735675080592,0.29833,3356.9,3356.8,12.64269244]
[1735675080896,3.50613,3356.9,3356.8,12.64269244]
[1735675081098,3.96163,3356.9,3356.8,12.64269244]
[1735675081297,0.75383,3356.9,3356.8,12.64269244]
[1735675081707,0.29834,3356.7,3356.6,4.98721322]
[1735675082701,0.29834,3356.7,3356.6,0.29835]
[1735675082902,3.48784491,3356.8,3356.7,0.29834]
[1735675084102,0.29831,3357.1,3357.0,0.29832]
[1735675084398,3.48784491,3357.2,3356.8,0.4502]
[1735675084601,2.38244492,3357.2,3357.1,0.29831]
[1735675084891,1.68134492,3357.2,3357.1,0.29831]
[1735675085299,0.27914492,3357.2,3357.1,5.29831]
[1735675085690,0.29825,3357.8,3357.7,0.29825]
[1735675086503,4.62836103,3357.9,3357.5,1.198]
[1735675086703,0.29826,3357.6,3357.5,1.49626]
[1735675087097,6.85832823,3357.9,3357.4,3.2078]
[1735675087098,0.29827,3357.5,3357.4,3.2078]
[1735675087301,1.64337,3357.5,3357.4,3.50608]
[1735675088513,1.64337,3357.5,3357.4,0.29828]
[1735675088715,1.19847,3357.5,3357.4,0.29828]
[1735675088913,7.18731509,3357.9,3357.6,0.29825]
[1735675088914,0.29827,3357.7,3357.6,0.29825]
[1735675090212,1.15945,3357.8,3357.7,0.29825]
[1735675090420,0.4301,3357.8,3357.7,0.29825]
[1735675090709,0.4301,3357.8,3357.7,4.98711322]
[1735675092412,0.73293,3358.0,3357.7,12.71096241]
[1735675092611,0.73293,3358.0,3357.9,0.29824]
[1735675094113,0.4347,3358.0,3357.7,5.68601455]
[1735675094314,0.29824,3357.9,3357.8,0.29824]
[1735675095419,0.29824,3357.8,3357.7,4.97728639]
[1735675095620,0.73614,3357.8,3357.7,4.97728639]
[1735675095820,3.94394,3357.8,3357.7,4.67903639]
[1735675096122,3.94394,3357.8,3357.7,1.0166364]
[1735675096420,0.29826,3357.6,3357.5,6.70204786]
[1735675096621,2.11160406,3357.6,3357.5,6.70204786]
[1735675096917,2.11160406,3357.6,3357.5,6.00124786]
[1735675097117,7.11160406,3357.6,3357.5,5.70234786]
[1735675097315,7.11160406,3357.6,3356.4,19.81058772]
[1735675097316,0.29835,3356.6,3356.5,12.87275715]
[1735675098519,0.29835,3356.6,3356.5,3.50616]
[1735675102417,0.29835,3356.6,3356.5,0.29836]
[1735675102618,0.29836,3356.5,3356.4,0.72277]
[1735675103518,1.81334406,3356.6,3356.4,0.4244]
[1735675103910,0.29836,3356.5,3356.4,0.72276]
[1735675104725,2.11170406,3356.6,3356.5,0.29836]
[1735675107527,2.11170406,3356.6,3356.4,0.72276]
[1735675107528,0.29836,3356.5,3356.4,0.72276]
[1735675107728,3.50616,3356.5,3356.4,0.4244]
[1735675108026,0.2984,3356.1,3356.0,9.36659715]
[1735675108215,2.11174406,3356.1,3356.0,9.36659715]
[1735675108416,5.31954406,3356.1,3356.0,9.36659715]
[1735675108618,3.5062,3356.1,3356.0,9.66499715]
[1735675108822,3.5062,3356.1,3356.0,9.36659715]
[1735675109324,0.2984,3356.0,3355.9,0.29841]
[1735675126131,0.29841,3355.9,3355.8,1.59151]
[1735675128033,5.02114406,3356.1,3355.8,1.2931]
[1735675128340,5.31954406,3356.1,3356.0,0.2984]
[1735675130232,0.29838,3356.4,3356.3,0.29837]
[1735675132543,3.95371,3356.5,3355.8,1.2931]
[1735675132745,0.29841,3356.0,3355.9,0.2984]
[1735675135047,0.2984,3356.1,3356.0,0.29839]
[1735675140552,0.29841,3356.0,3355.9,0.29841]
[1735675141851,0.74599,3356.2,3355.8,1.2931]
[1735675142048,0.29841,3355.9,3355.8,1.59151]
[1735675142955,0.29841,3355.9,3355.8,7.11736463]
[1735675144162,0.29841,3355.9,3355.8,16.48396178]
[1735675144658,0.2984,3356.2,3356.1,0.29838]
[1735675145460,0.2984,3356.2,3356.1,5.82423463]
[1735675146259,5.52560067,3356.5,3356.4,0.29837]
[1735675146459,0.91560067,3356.5,3356.4,0.29837]
[1735675148180,0.29834,3356.7,3356.4,28.37338435]
[1735675148364,0.29834,3356.7,3356.6,0.29835]
[1735675148663,0.29834,3356.8,3356.7,0.29833]
[1735675149665,0.29834,3356.8,3356.7,5.82418463]
[1735675150164,0.29833,3356.9,3356.8,0.29833]
[1735675150561,0.29832,3357.0,3356.9,0.29832]
[1735675150761,3.2078,3357.3,3356.7,5.97565463]
[1735675150961,3.2078,3357.3,3356.8,0.29833]
[1735675150962,0.29833,3356.9,3356.8,0.29833]
[1735675151770,0.29833,3356.9,3356.8,5.82418463]
[1735675152173,1.81334406,3357.2,3356.8,5.52585463]
[1735675152375,0.29832,3356.9,3356.8,5.82418463]
[1735675153266,0.29832,3356.9,3356.8,5.52585463]
[1735675153869,0.29833,3356.8,3356.7,0.059487]
[1735675154072,0.29834,3356.7,3356.6,0.4604]
[1735675155369,0.4478,3356.8,3356.5,0.4371]
[1735675155568,0.29835,3356.6,3356.5,0.4371]
[1735675155978,0.29835,3356.6,3356.5,0.73546]
[1735675158566,0.29835,3356.6,3356.5,0.4371]
[1735675159781,0.29835,3356.6,3356.5,0.73546]
[1735675165580,0.29835,3356.6,3356.5,0.4371]
[1735675165781,0.29835,3356.6,3356.5,0.73546]
[1735675167682,0.29834,3356.8,3356.7,0.29833]
[1735675168183,0.75474,3356.8,3356.7,0.29833]
[1735675169789,0.4564,3356.8,3356.5,0.4371]
[1735675169989,0.29835,3356.6,3356.5,0.73545]
[1735675177998,0.74586,3356.7,3356.3,0.4211]
[1735675178188,0.29836,3356.5,3356.4,0.4247]
[1735675179391,0.29836,3356.5,3356.4,0.72307]
[1735675179581,0.29836,3356.5,3356.4,0.4247]
[1735675179892,0.29836,3356.5,3356.4,0.72307]
[1735675180090,0.29836,3356.5,3356.4,0.4247]
[1735675181089,0.29836,3356.5,3356.4,0.72307]
[1735675181288,0.29836,3356.5,3356.4,0.4247]
[1735675181485,0.29836,3356.5,3356.4,0.72307]
[1735675181690,0.29836,3356.5,3356.4,0.4247]
[1735675182892,0.29837,3356.4,3356.3,7.03052287]
[1735675183099,0.72137,3356.4,3356.3,7.03052287]
[1735675184093,0.29838,3356.3,3356.2,0.29838]
[1735675184601,0.29838,3356.2,3356.1,7.77651287]
[1735675186001,3.2078,3356.5,3356.1,7.47812287]
[1735675186196,3.50616,3356.5,3356.4,0.29837]
[1735675187604,3.2078,3356.5,3356.4,0.29837]
[1735675187798,3.50616,3356.5,3356.4,0.29837]
[1735675188104,3.50616,3356.5,3356.4,5.48166082]
[1735675188400,3.2078,3356.5,3356.4,5.48166082]
[1735675188789,3.50616,3356.5,3356.4,5.48166082]
[1735675189498,3.50616,3356.5,3356.4,12.51218369]
[1735675193401,3.50616,3356.5,3356.4,5.48166082]
[1735675196408,4.22642038,3356.8,3356.7,0.29834]
[1735675196606,3.2078,3356.9,3356.6,1.81334406]
[1735675196800,3.2078,3356.9,3356.8,0.29833]
[1735675197106,0.2983,3357.2,3357.1,0.2983]
[1735675197506,3.79682388,3357.2,3357.1,0.2983]
[1735675199212,0.2983,3357.2,3357.1,0.2983]
[1735675199598,0.2983,3357.2,3357.1,1.2002]
[1735675200224,0.2983,3357.2,3357.1,5.18354285]
[1735675200510,0.2983,3357.2,3357.1,3.78154285]
[1735675201412,0.2983,3357.2,3356.6,7.04164252]
[1735675201413,0.29834,3356.7,3356.6,7.04164252]
[1735675201608,3.50614,3356.7,3356.6,7.33999252]
[1735675201808,3.50614,3356.7,3356.6,7.04164252]
[1735675202006,3.50614,3356.7,3356.6,7.33999252]
[1735675202222,3.50614,3356.7,3356.6,7.04164252]
[1735675202609,0.29836,3356.5,3356.4,0.8896]
[1735675202805,2.11170406,3356.5,3356.4,0.8896]
[1735675204410,0.29837,3356.3,3356.2,7.04164252]
[1735675206608,0.29837,3356.4,3356.3,0.29837]
[1735675207111,0.29837,3356.3,3356.2,7.04164252]
[1735675207313,0.29837,3356.3,3356.2,7.34002252]
[1735675207613,0.29837,3356.3,3356.2,7.04164252]
[1735675207908,3.50617,3356.3,3356.2,7.04164252]
[1735675208309,3.50617,3356.3,3356.2,6.35817252]
[1735675209719,13.03817274,3356.3,3355.5,0.437]
[1735675210019,0.29844,3355.6,3355.5,0.437]
[1735675211008,0.29844,3355.6,3355.5,0.73545]
[1735675211319,1.49176,3356.7,3355.8,0.29842]
[1735675211320,2.7906799,3355.9,3355.8,0.29842]
[1735675212716,0.2984,3356.0,3355.6,1.197]
[1735675212717,0.2984,3356.0,3355.9,0.29841]
[1735675213513,0.29839,3356.1,3355.9,0.29841]
[1735675213813,0.29839,3356.1,3356.0,0.7351]
[1735675214125,0.29839,3356.1,3356.0,0.4367]
[1735675215315,0.29839,3356.2,3356.1,0.29839]
[1735675215516,0.29837,3356.4,3356.3,0.29837]
[1735675216019,0.29838,3356.3,3356.2,0.29838]
[1735675216214,0.29838,3356.2,3356.1,0.462]
[1735675218917,1.81334406,3356.3,3356.0,0.4367]
[1735675219226,0.29839,3356.1,3356.0,0.4367]
[1735675220525,0.29839,3356.1,3356.0,0.8712]
[1735675221616,3.2078,3356.6,3356.0,0.8712]
[1735675221819,3.2078,3356.6,3356.5,0.29836]
[1735675222016,2.5066,3356.6,3356.5,0.29836]
[1735675222219,4.65583987,3356.7,3356.6,0.29835]
[1735675223417,0.29833,3356.8,3356.7,0.29834]
[1735675225118,3.2078,3357.1,3356.6,0.9183]
[1735675225318,0.29833,3356.8,3356.7,0.4612]
[1735675225520,0.29834,3356.7,3356.6,0.9183]
[1735675228723,0.29836,3356.5,3356.4,0.4612]
[1735675229421,0.29836,3356.5,3356.4,0.75957]
[1735675230324,1.81334406,3356.9,3356.4,0.4612]
[1735675230528,0.29833,3356.8,3356.7,0.29833]
[1735675231118,0.29831,3357.0,3356.9,0.29832]
[1735675231627,3.2078,3357.1,3356.6,3.2078]
[1735675231929,3.50611,3357.1,3357.0,0.29831]
[1735675232538,4.65583987,3357.4,3356.8,1.81334406]
[1735675232726,4.65583987,3357.4,3356.7,0.74585]
[1735675232727,4.65583987,3357.4,3357.3,0.29829]
[1735675232926,0.99253987,3357.6,3357.5,0.29827]
[1735675233326,0.99253987,3357.6,3357.5,5.29827]
[1735675233528,5.83087314,3357.8,3357.7,0.29825]
[1735675234228,0.29821,3358.2,3358.1,0.29821]
[1735675234423,1.81334406,3358.4,3357.8,3.2078]
[1735675234827,0.29823,3357.9,3357.8,3.50604]
[1735675235340,0.29821,3358.3,3358.2,0.2982]
[1735675235634,0.2982,3358.4,3358.3,0.29819]
[1735675236133,0.29821,3358.1,3358.0,0.29822]
[1735675236331,2.55882406,3358.4,3357.8,3.2078]
[1735675236629,0.29823,3358.0,3357.9,4.97594382]
[1735675236829,1.81334406,3358.4,3357.9,4.67771382]
[1735675237033,0.29822,3358.1,3358.0,0.29822]
[1735675237224,1.81334406,3358.4,3357.9,4.67771382]
[1735675237621,0.74028,3358.5,3358.4,0.29819]
[1735675237827,0.4421,3358.5,3358.4,0.29819]
[1735675239029,0.74028,3358.5,3358.4,0.29819]
[1735675240630,1.81334406,3359.0,3358.3,1.197]
[1735675240830,0.4353,3358.9,3358.8,0.29815]
[1735675241032,0.73344,3358.9,3358.8,0.29815]
[1735675241224,0.73344,3358.9,3358.7,0.29816]
[1735675241635,0.4353,3358.9,3358.8,0.29815]
[1735675242127,0.4354,3359.1,3359.0,0.29813]
[1735675242631,0.29811,3359.3,3359.1,0.29812]
[1735675242831,0.2981,3359.4,3359.2,0.29811]
[1735675243138,0.463,3359.5,3359.2,0.29811]
[1735675243326,0.29811,3359.3,3359.2,0.29811]
[1735675243534,0.29811,3359.3,3359.1,0.29812]
[1735675243837,0.463,3359.5,3358.6,5.02114406]
[1735675244038,0.29812,3359.2,3359.0,0.29813]
[1735675244338,0.2981,3359.4,3358.7,0.74541]
[1735675244636,0.29806,3359.8,3359.4,0.2981]
[1735675244936,3.94895,3360.0,3359.7,0.29807]
[1735675245732,3.6509,3360.0,3359.5,0.4548]
[1735675245927,0.29809,3359.5,3359.3,0.2981]
[1735675246129,0.29813,3359.1,3359.0,4.4038]
[1735675246429,1.81334406,3359.8,3359.0,4.4038]
[1735675246633,0.8732,3359.6,3359.0,4.4038]
[1735675246839,0.29813,3359.2,3359.0,4.70193]
[1735675247133,0.29813,3359.2,3359.1,0.29813]
[1735675247531,0.29813,3359.2,3358.6,6.94965788]
[1735675247532,1.81334406,3359.2,3358.6,4.67771382]
[1735675247835,0.29816,3358.8,3358.7,0.29816]
[1735675249336,0.4478,3359.1,3358.4,0.4295]
[1735675249642,0.29818,3358.6,3358.5,1.49417]
[1735675250030,0.2982,3358.3,3358.2,0.2982]
[1735675250229,3.2078,3358.8,3358.2,1.196]
[1735675250438,0.29817,3358.7,3358.6,0.29816]
[1735675250734,3.2078,3358.8,3358.3,0.8763]
[1735675250939,0.29816,3358.7,3358.6,0.29816]
[1735675256538,3.50596,3358.8,3358.7,0.29816]
[1735675257543,3.2078,3358.8,3358.4,1.196]
[1735675257746,0.29817,3358.7,3358.6,0.29816]
[1735675259740,3.2078,3358.8,3358.4,1.196]
[1735675259957,3.2078,3358.8,3358.5,0.29817]
[1735675259958,0.29818,3358.6,3358.5,0.29817]
[1735675260638,3.2078,3358.8,3358.3,1.6291]
[1735675260937,0.2982,3358.3,3358.2,0.2982]
[1735675261340,0.29822,3358.1,3358.0,0.29822]
[1735675261547,0.29822,3358.0,3357.9,1.92653]
[1735675262145,0.29822,3358.0,3357.9,0.73053]
[1735675262340,0.29822,3358.1,3358.0,0.29821]
[1735675262544,0.29822,3358.0,3357.9,0.73053]
[1735675262944,0.29822,3358.1,3358.0,0.29821]
[1735675265941,0.29822,3358.0,3357.9,0.29823]
[1735675269146,0.29825,3357.9,3357.8,0.29823]
[1735675269346,0.29826,3357.7,3357.6,0.29824]
[1735675269647,0.29825,3357.8,3357.7,0.29824]
[1735675271440,0.75684,3357.9,3357.8,0.29824]
[1735675272244,0.29826,3357.7,3357.6,0.29825]
[1735675272451,0.29825,3357.8,3357.7,0.29824]
[1735675272646,0.75684,3357.9,3357.8,0.29824]
[1735675277947,0.75684,3357.9,3357.6,4.67771382]
[1735675277948,0.4586,3357.9,3357.6,4.67771382]
[1735675278147,0.29825,3357.7,3357.6,4.97597382]
[1735675278346,0.4586,3357.9,3357.6,4.67771382]
[1735675278545,0.75684,3357.9,3357.8,0.29824]
[1735675282745,0.4586,3357.9,3357.8,0.29824]
[1735675282950,3.50599,3358.4,3357.9,0.74559]
[1735675283155,3.2078,3358.4,3358.3,0.2982]
[1735675283456,0.4533,3358.5,3358.4,0.29819]
[1735675283658,0.75148,3358.5,3358.4,0.29819]
[1735675283955,0.4533,3358.5,3358.4,0.29819]
[1735675285154,2.31885156,3359.1,3358.6,0.74542]
[1735675285454,2.31885156,3359.1,3359.0,0.29813]
[1735675285850,2.31885156,3359.1,3359.0,0.73163]
[1735675286156,2.76035156,3359.6,3359.5,0.29809]
[1735675286355,0.2981,3359.5,3359.4,0.29809]
[1735675287553,2.76035156,3359.6,3359.5,0.29809]
[1735675287860,0.4415,3359.6,3359.5,0.29809]
[1735675288648,0.73958,3359.6,3359.5,0.29809]
[1735675288855,0.4415,3359.6,3359.5,0.29809]
[1735675289552,2.26294406,3359.9,3359.8,0.29806]
[1735675289553,0.4496,3359.9,3359.8,0.29806]
[1735675289752,0.74765,3359.9,3359.8,0.29806]
[1735675289964,0.438,3360.0,3359.5,0.4491]
[1735675290159,0.438,3360.0,3359.9,0.29805]
[1735675290551,0.73605,3360.0,3359.9,0.29805]
[1735675290751,0.438,3360.0,3359.5,0.4491]
[1735675290952,0.438,3360.0,3359.4,1.625]
[1735675291161,0.438,3360.0,3359.7,4.67771382]
[1735675291356,0.29806,3359.8,3359.7,4.67771382]
[1735675291963,0.29806,3359.8,3359.7,4.97578382]
[1735675292161,0.29806,3359.8,3359.7,4.67771382]
[1735675292567,0.29808,3359.7,3359.6,0.29808]
[1735675292864,0.29809,3359.6,3359.5,0.29808]
[1735675293364,0.438,3360.0,3359.4,1.625]
[1735675293665,0.29807,3359.8,3359.7,0.29807]
[1735675294060,0.438,3360.0,3359.4,1.625]
[1735675294259,0.438,3360.0,3359.9,0.29805]
[1735675294666,0.73605,3360.0,3359.9,0.29805]
[1735675295160,0.438,3360.0,3359.6,1.196]
[1735675295759,0.73605,3360.0,3359.9,0.29805]
[1735675296966,0.29806,3359.9,3359.8,0.29806]
[1735675297468,0.438,3360.0,3359.9,0.29805]
[1735675301967,0.73605,3360.0,3359.9,0.29805]
[1735675302271,0.438,3360.0,3359.9,0.29805]
[1735675303886,0.73605,3360.0,3359.9,0.29805]
[1735675304775,0.29806,3359.9,3359.8,0.29806]
[1735675305072,0.74506,3359.9,3359.8,0.29806]
[1735675307368,0.438,3360.0,3359.9,0.29805]
[1735675307574,0.73605,3360.0,3359.9,0.29805]
[1735675308071,0.29807,3359.9,3359.8,0.29806]
[1735675308277,0.438,3360.0,3359.6,0.4604]
[1735675308773,0.29807,3359.9,3359.8,0.29805]
[1735675311876,0.74117,3359.9,3359.8,0.29805]
[1735675313482,0.29809,3359.5,3359.4,0.29809]
[1735675315080,3.6509,3359.9,3359.2,1.81334406]
[1735675315281,0.29807,3359.8,3359.7,0.29806]
[1735675316880,0.4431,3359.9,3359.4,0.4413]
[1735675317084,0.29811,3359.4,3359.3,0.2981]
[1735675317588,0.74517,3359.8,3359.1,2.38262]
[1735675317891,0.29809,3359.6,3359.5,0.29808]
[1735675319188,0.4431,3359.9,3359.2,0.7453]
[1735675319392,0.4431,3359.9,3359.3,3.2078]
[1735675319591,0.74117,3359.9,3359.8,0.29806]
[1735675320488,0.4431,3359.9,3359.1,1.94131]
[1735675320684,0.4431,3359.9,3359.8,0.29806]
[1735675321091,0.74115,3359.9,3359.8,0.29806]
[1735675323983,3.6458,3360.0,3359.5,1.20242]
[1735675324188,0.73143,3360.3,3360.2,0.29803]
[1735675325790,0.73143,3360.3,3359.8,1.196]
[1735675325791,0.4334,3360.3,3359.8,1.196]
[1735675325993,0.29805,3360.1,3360.0,0.29804]
[1735675326586,0.29806,3359.9,3359.8,0.29806]
[1735675326785,0.29806,3359.9,3359.6,1.196]
[1735675326786,1.81334406,3359.9,3359.5,4.67771382]
[1735675326991,1.3011,3359.8,3359.5,4.67771382]
[1735675327188,0.852,3359.8,3359.7,0.29807]
[1735675327396,1.15006,3359.8,3359.7,0.29807]
[1735675327788,0.852,3359.8,3359.7,0.29807]
[1735675328286,0.4258,3359.8,3359.7,0.29807]
[1735675328794,0.72386,3359.8,3359.7,0.29807]
[1735675329794,0.72386,3359.8,3359.7,12.58773926]
[1735675330994,0.72386,3359.8,3359.7,5.59682708]
[1735675331592,0.4258,3359.8,3359.7,5.59682708]
[1735675331795,0.72386,3359.8,3359.7,5.59682708]
[1735675332189,0.72386,3359.8,3359.7,15.90876613]
[1735675333097,0.72386,3359.8,3359.7,10.61000905]
[1735675333599,3.04271156,3359.8,3359.7,4.69048064]
[1735675334111,3.49681156,3359.8,3359.7,4.69048064]
[1735675336403,0.29807,3359.7,3359.6,4.69048064]
[1735675336597,3.50587,3359.7,3359.6,4.69048064]
[1735675337894,5.84026486,3359.7,3359.6,4.69048064]
[1735675339197,0.29808,3359.6,3359.5,4.69048064]
[1735675339390,0.72148,3359.6,3359.5,4.69048064]
[1735675340492,3.90656078,3359.6,3359.4,0.4587]
[1735675340697,0.29809,3359.5,3359.4,0.4587]
[1735675344398,2.63127684,3359.5,3359.4,0.4587]
[1735675344808,5.83907684,3359.5,3359.4,0.4587]
[1735675345502,5.54098684,3359.5,3359.2,4.69048064]
[1735675345801,0.29811,3359.3,3359.2,4.69048064]
[1735675347208,0.29811,3359.3,3359.2,12.33131296]
[1735675352709,0.29812,3359.2,3359.1,4.68635071]
[1735675354109,0.29812,3359.2,3359.0,0.29813]
[1735675354110,0.29813,3359.1,3359.0,0.29813]
[1735675354904,0.29813,3359.0,3358.9,0.75614]
[1735675359311,0.29813,3359.0,3358.9,0.458]
[1735675359514,0.29813,3359.0,3358.9,0.75614]
[1735675360010,0.29815,3358.8,3358.7,4.68635071]
[1735675361411,0.29815,3358.8,3358.6,7.33389096]
[1735675361412,0.74535,3359.0,3358.6,4.98452071]
[1735675361713,3.2078,3358.7,3358.6,4.98452071]
[1735675362312,0.29815,3358.8,3358.6,4.68635071]
[1735675362613,0.29815,3358.8,3358.7,0.29816]
[1735675362811,0.29815,3358.9,3358.8,0.29814]
[1735675366417,0.29815,3358.9,3358.6,5.14228543]
[1735675366418,0.29816,3358.8,3358.7,0.29816]